Cogmind - Beta 12 @@@ ROGUE MODE // 2023.03.11 @ 18:38:42 Player: IzRey Result: Destroyed by D-53 Grenadier with Mini Grenade Launcher Performance ------------- Evolutions (0) 0 Regions Visited (2) 400 Robots Destroyed (21) 105 Value Destroyed (672) 672 Prototype IDs (0) 0 Alien Tech Used (0) 0 Bonus (0) 0 TOTAL SCORE: 1177 Bonus ------- None Cogmind --------- Core Integrity 0/250 Matter 283/300 Energy 86/100 System Corruption 3% Temperature Cool (0) Movement Core (700) Ox13 Location -10/Mines Parts ------- > --- POWER (1) -------- (None) > --- PROPULSION (2) --- (None) > --- UTILITY (2) ------ High-capacity Storage Unit Signal Interpreter > --- WEAPON (2) ------- Mining Claw > --- INVENTORY (20) --- Ion Engine Ion Engine Light Ion Engine Aluminum Leg Aluminum Leg Aluminum Leg Aluminum Leg Aluminum Leg Aluminum Leg Aluminum Leg Aluminum Leg Wheel Wheel High-capacity Storage Unit High-capacity Matter Pod (0) Targeting Computer Light Armor Plating Grenade Launcher Grenade Launcher Peak State ------------ > --- POWER ------------ Ion Engine > --- PROPULSION ------- Aluminum Leg Aluminum Leg > --- UTILITY ---------- High-capacity Storage Unit Light Armor Plating > --- WEAPON ----------- Small Laser Assault Rifle > --- INVENTORY -------- Ion Engine Ion Engine Light Ion Engine Aluminum Leg Aluminum Leg Aluminum Leg Aluminum Leg Aluminum Leg Aluminum Leg Aluminum Leg Aluminum Leg Wheel Wheel High-capacity Storage Unit High-capacity Matter Pod Signal Interpreter Targeting Computer Grenade Launcher Grenade Launcher Mining Claw [Rating: 9] Favorites ----------- Power Ion Engine Engine Ion Engine Propulsion Aluminum Leg Leg Aluminum Leg Utility Light Armor Plating Storage High-capacity Storage Unit Processor Signal Interpreter Protection Light Armor Plating Weapon Assault Rifle Energy Gun Small Laser Ballistic Gun Assault Rifle Launcher Grenade Launcher Slashing Weapon Mining Claw Build | -11 -10 -10 ------- Run | Jun Mat Min Slots Evolved . | . . . Power . | . . . Propulsion . | . . . Utility . | . . . Weapon . | . . . Parts Attached 16 | . 12 4 Power 1 | . 1 . Engine 1 | . 1 . Core . | . . . Reactor . | . . . Propulsion 5 | . 5 . Treads . | . . . Leg 5 | . 5 . Wheel . | . . . Hover . | . . . Flight . | . . . Utility 5 | . 4 1 Device . | . . . Storage 2 | . 2 . Processor 1 | . . 1 Hackware . | . . . Protection 2 | . 2 . Artifact . | . . . Weapon 5 | . 2 3 Energy Gun 3 | . 2 1 Energy Cannon . | . . . Ballistic Gun . | . . . Ballistic Cannon . | . . . Launcher 1 | . . 1 Special Weapon . | . . . Impact Weapon . | . . . Slashing Weapon 1 | . . 1 Piercing Weapon . | . . . Special Melee Weapon . | . . . Unidentified Prototypes . | . . . Parts Lost 7 | . 2 5 Power 1 | . . 1 Propulsion 2 | . . 2 Utility 1 | . 1 . Weapon 3 | . 1 2 Highest Loss Streak 5 | . 1 5 To Critical Strikes . | . . . Average Slot Usage (%) 98 | . 98 98 Engine 13 | . 14 13 Leg 28 | . 28 28 Storage 14 | . 14 14 Protection 12 | . 12 8 Energy Gun 13 | . 13 7 Ballistic Gun 13 | . 14 13 Naked Turns . | . . . Heaviest Build 53 | 11 51 53 Greatest Support 20 | 20 20 20 Greatest Overweight (x) 2 | . 2 2 Average Overweight (x) 1 | . 1 2 Largest Inventory Capacity 20 | 8 20 20 Average Capacity 17 | 8 17 20 Most Carried 20 | 6 20 20 Average Carried 14 | 6 14 19 Final Capacity 20 | 8 20 20 Final Carried 20 | 6 20 19 Class Distribution -------------------- 100% | Mutant Dominant Class ---------------- Mutant | -10/Materials Mutant | -10/Mines Resources | -11 -10 -10 ----------- Run | Jun Mat Min Matter Collected 541 | 218 263 60 Remotely . | . . . Salvage Created 782 | 89 677 16 Parts 46 | 2 40 4 Haulers Intercepted . | . . . Recyclers Shooed . | . . . Parts Field Recycled . | . . . Retrieved Matter . | . . . Parts Self-Destructed . | . . . Prevented . | . . . Kills | -11 -10 -10 ------- Run | Jun Mat Min Combat Hostiles Destroyed 20 | . 16 4 Melee 1 | . . 1 Guns 16 | . 16 . AOE 3 | . . 3 Classes Destroyed 4 | 1 1 2 Recycler 1 | 1 . . Swarmer 3 | . . 3 Grunt 16 | . 16 . Demolisher 1 | . . 1 Best Kill Streak 3 | 1 3 3 Combat Bots Only 3 | . 3 3 Max Kills in Single Turn 2 | 1 2 2 Gunslinging 1 | . 1 . Exploded 2 | . . 2 Melee 1 | . . 1 Uniques/NPCs Destroyed . | . . . Combat | -11 -10 -10 -------- Run | Jun Mat Min Damage Taken 1001 | . 441 560 Core 252 | . 47 205 Absorbed by Shields . | . . . Core Remaining (%) 100 | 100 . . Volleys Fired 57 | 6 47 4 Largest 2 | 2 2 1 Hottest 70 | 60 70 30 Shots Fired 110 | 12 94 4 Gun 106 | 12 94 . Cannon . | . . . Launcher 4 | . . 4 Special . | . . . Kinetic 53 | 6 47 . Thermal 53 | 6 47 . Explosive 4 | . . 4 Electromagnetic . | . . . Robot Hit Streak 12 | 4 12 . Robot Miss Streak 2 | 2 2 2 Penetration Max . | . . . Secondary Targets 1 | . 1 . Max Gunslinging Chain 1 | . 1 . Shots Hit Robots 74 | 8 65 1 Core Hits 41 | 2 35 4 Critical Kills . | . . . Critical Parts Destroyed 1 | . 1 . Critical Strikes 3 | . 3 . Burn 2 | . 2 . Destroy 1 | . 1 . Melee Attacks 1 | . . 1 Impact . | . . . Slashing 1 | . . 1 Piercing . | . . . Sneak Attacks . | . . . Combat Hostiles . | . . . Follow-up Attacks . | . . . Damage Inflicted 1070 | 92 811 167 Guns 903 | 92 811 . Cannons . | . . . Explosions 145 | . . 145 Melee 22 | . . 22 Ramming . | . . . Kinetic 450 | 48 402 . Thermal 453 | 44 409 . Explosive 145 | . . 145 Electromagnetic . | . . . Impact . | . . . Slashing 22 | . . 22 Piercing . | . . . Highest Corruption 3 | . 3 3 Average Corruption 2 | . 2 3 Corruption Purged . | . . . Corruption Blocked . | . . . Effects 23 | . 19 4 Message Errors 2 | . 2 . Matter Fused 5 | . 4 1 Heat Flow Errors 6 | . 4 2 Energy Discharges 4 | . 4 . Data Loss (minor) 4 | . 3 1 Misfires 1 | . 1 . Weapon Failures 1 | . 1 . Overload Shots . | . . . Overflow Damage . | . . . Projectiles . | . . . Explosions . | . . . Melee . | . . . Knockbacks . | . . . Impact . | . . . Kinetic . | . . . Secondary . | . . . Self-Inflicted Damage 22 | . . 22 Shots 1 | . . 1 Rammed . | . . . Targets Rammed . | . . . Kicked . | . . . Crushed . | . . . Highest Temperature 306 | 20 306 251 Average Temperature 79 | 18 76 118 Received Heat Transfer 246 | . 246 . Effects 1 | . . 1 Energy Bleed 1 | . . 1 Siege Activations . | . . . Robots Corrupted . | . . . Combat Hostiles . | . . . Parts Fried . | . . . Impact Corruptions . | . . . Robots Melted . | . . . Combat Hostiles . | . . . Parts Melted 2 | . 2 . Heat Transferred 1327 | 100 1227 . Parts Sabotaged . | . . . Parts Stolen . | . . . Parts Stripped . | . . . Power Chain Reactions . | . . . Missiles Intercepted . | . . . Alert | -11 -10 -10 ------- Run | Jun Mat Min Peak Influence 208 | 5 208 142 Initial 54 | . 3 54 Average 86 | 2 85 98 Maximum Alert Level 1 | . 1 . Low Security (%) 98 | 100 98 100 Level 1 1 | . 1 . Level 2 . | . . . Level 3 . | . . . Level 4 . | . . . Level 5 . | . . . High Security . | . . . Max Security . | . . . Squads Dispatched 4 | . 4 . Investigation 3 | . 3 . Extermination . | . . . Reinforcement 1 | . 1 . Assault . | . . . Garrison . | . . . Intercept . | . . . Searches Triggered . | . . . Construction Impeded . | . . . Haulers Reinforced . | . . . Active Scanning Responses . | . . . Cargo Convoy Interrupts . | . . . Stealth | -11 -10 -10 --------- Run | Jun Mat Min Distress Signals 2 | . 2 . Communications Jammed . | . . . Distress Signals . | . . . Times Spotted 33 | . 30 3 Peak Tracking Total 4 | . 4 2 Tactical Retreats 1 | . 1 . Traps | -11 -10 -10 ------- Run | Jun Mat Min Traps Triggered 2 | . 2 . Indirectly . | . . . Trap Hack Attempts . | . . . Triggered . | . . . Disarmed . | . . . Reprogrammed . | . . . Reused . | . . . Traps Extracted . | . . . Installed . | . . . Triggered . | . . . Machines | -11 -10 -10 ---------- Run | Jun Mat Min Machines Disabled . | . . . Max in Single Turn . | . . . Machines Repaired . | . . . Machines Sabotaged . | . . . Overloaded Fab Kills . | . . . Hacking | -11 -10 -10 --------- Run | Jun Mat Min Machines Accessed 9 | . 9 . Terminals 7 | . 7 . Fabricators . | . . . Repair Stations . | . . . Recycling Units 2 | . 2 . Scanalyzers . | . . . Garrison Access . | . . . Total Hacks 26 | . 26 . Successful 14 | . 14 . Failed 12 | . 12 . Catastrophic . | . . . Database Lockouts . | . . . Manual 18 | . 18 . Terminals 23 | . 23 . Fabricators . | . . . Repair Stations . | . . . Recycling Units 3 | . 3 . Scanalyzers . | . . . Garrison Access . | . . . Terminal Hacks 6 | . 6 . Branch Access Points 1 | . 1 . Terminal Index 1 | . 1 . Unreport Threat 1 | . 1 . Locate Traps 3 | . 3 . Fabricator Hacks . | . . . Repair Station Hacks . | . . . Recycling Unit Hacks . | . . . Scanalyzer . | . . . Garrison Access Hacks . | . . . Unauthorized Hacks 8 | . 8 . Terminals 6 | . 6 . Botnet 6 | . 6 . Fabricators . | . . . Repair Stations . | . . . Recycling Units 2 | . 2 . Tunnel 2 | . 2 . Scanalyzers . | . . . Garrison Access . | . . . Data Cores Recovered . | . . . Used . | . . . Hacking Detections 6 | . 6 . Full Trace Events 1 | . 1 . Feedback Events 1 | . 1 . Corruption 1 | . 1 . Feedback Blocked . | . . . Robot Schematics Acquired . | . . . Robots Built . | . . . Authchips . | . . . Time . | . . . Total Robot Build Rating . | . . . Part Schematics Acquired . | . . . Parts Built . | . . . Authchips . | . . . Time . | . . . Total Part Build Rating . | . . . Parts Repaired . | . . . Time . | . . . Parts Recycled . | . . . Recycled Matter . | . . . Retrieved Matter . | . . . Retrieved Components . | . . . Parts Scanalyzed . | . . . Part Schematics Acquired . | . . . Parts Damaged . | . . . Bothacking | -11 -10 -10 ------------ Run | Jun Mat Min Used RIF Installer . | . . . Robots Hacked . | . . . Non-combat . | . . . Combat . | . . . Robot Hacks Applied . | . . . Relay Couplers Released . | . . . Fabnet Peak Effective % . | . . . Robots Rewired . | . . . Allies Hacked . | . . . Hacks Repelled . | . . . Allies | -11 -10 -10 -------- Run | Jun Mat Min Total Allies . | . . . Largest Group . | . . . Highest-Rated Group . | . . . Highest-Rated Ally . | . . . Total Orders . | . . . Ally Attacks . | . . . Total Damage . | . . . Kills . | . . . Allies Corrupted . | . . . Allies Melted . | . . . Intel | -11 -10 -10 ------- Run | Jun Mat Min Robot Analysis Total . | . . . Derelict Logs Recovered . | . . . Drone Launches . | . . . Drone Recoveries . | . . . Exploration | -11 -10 -10 ------------- Run | Jun Mat Min Turns Passed 2096 | 26 1818 252 Spaces Moved 835 | 7 737 91 Core . | . . . Treads . | . . . Legs 835 | 7 737 91 Wheels . | . . . Hover . | . . . Flight . | . . . Fastest Speed 120 | 120 120 260 Average Speed 222 | 120 218 260 Slowest Speed 260 | 120 260 260 Overloaded Moves . | . . . Propulsion Burnouts . | . . . Robots Hopped . | . . . Cave-ins Triggered . | . . . Exploration Rate (%) 40 | 2 94 24 Regions Visited 2 Branch Regions 1 Pre-discovered Areas 2 | . 2 . Known Exits Taken 1 | . 1 . Unknown Exits Taken 1 | 1 . . Scrap Searched 1 | . . 1 Spaces Dug 15 | . . 15 Terrain Destroyed 31 | . . 31 Melee . | . . . Projectile . | . . . AOE 31 | . . 31 Terrain Rammed . | . . . Walls Destroyed . | . . . Machines Disabled . | . . . Actions | -11 -10 -10 --------- Run | Jun Mat Min Total 962 | 12 850 100 Wait 26 | . 26 . Move 833 | 6 736 91 Hop . | . . . Pick Up 19 | . 19 . Fast Attach 2 | . 2 . Attach 3 | . 2 1 Detach . | . . . Swap 11 | . 8 3 Drop 10 | . 10 . Fire 57 | 6 47 4 Melee 1 | . . 1 Ram . | . . . Kick . | . . . Crush . | . . . Escape Stasis . | . . . Rewire . | . . . Trap . | . . . Miscellaneous . | . . . Route ------- -11/Junkyard -10/Materials (discovered 5 exits: *Mat x3 / *Min x2) -10/Mines (discovered 2 exits: *Mat x2) History --------- Turn | Location | Event 19 | -11/Junkyard | Discovered new exit (range 2) 27 | -11/Junkyard | Entered Materials 121 | -10/Materials | Discovered new exit (range 13) 304 | -10/Materials | Build established: Mutant 687 | -10/Materials | Discovered new exit (range 5) 1175 | -10/Materials | Discovered new exit (range 10) 1502 | -10/Materials | Discovered new exit (range 4) 1606 | -10/Materials | Identified exit to Mines 1845 | -10/Materials | Entered Mines 1939 | -10/Mines | Discovered new exit (range 9) 2001 | -10/Mines | Discovered new exit (range 8) 2029 | -10/Mines | Identified exit to Materials 2082 | -10/Mines | Assembled infested the area 2087 | -10/Mines | Assisted by a Guerilla fighting off Assembled 2094 | -10/Mines | Core integrity fell below 50% 2096 | -10/Mines | Core integrity fell below 20% 2097 | -10/Mines | Destroyed by D-53 Grenadier with Mini Grenade Launcher Last Messages --------------- 02086_ D-53 Grenadier suffers critical hit (Destroy). 02086_ D-53 Grenadier knocked back. 02086_ HV Slug penetrates D-53 Grenadier. 02087_ A derelict emerges from the shadows: "You need to get out of here! I've been tracking a group of Assembled to figure out where they're coming from, and they're closing on this area, come on!" 02087_ Assault Rifle destroyed. 02088_ U-05 Engineer lays Concrete. 02089_ Matter Pump disabled. 02089_ U-05 Engineer lays Concrete. 02089_ XF-Z1E(h) destroyed. 02089_ Acquired 28 matter. 02090_ U-05 Engineer lays Concrete. 02091_ The unstable cave ceiling collapses. 02091_ U-05 Engineer lays Concrete. 02093_ Sml. Laser destroyed. 02093_ U-05 Engineer destroyed. 02095_ Aluminum Leg destroyed. 02096_ The unstable cave ceiling collapses. 02096_ D-53 Grenadier destroyed. Map ----- +----------------------------------------------------+ | ??## #??## #####?????????????????????? | | ??# #### #????###??????????????? | | ??# ## #???? #??????????????? | | ??## ### #????# #??????????????? | | ???## ## ##?# #????# #??????###?????? | | ????## ########??# #????# #?????# ##????? | | ?????####?????????# #????# #?????= ##???? | | ??????????????????# ###### ###?## #???? | | ??????????????????# ### [ #???? | | ??????????????????# < #????? | | ??????????????????########### ###????? | | ????????????????????????????##! ###??????? | | ?????????????????????????????## #???????? | | ????????????????####??????????# ###??????? | | ????????????????# #?????????# # ##?????? | | ????????????????# #????????## # #?????? | | ?????????????????# #?##???## *= #?????? | | ??????????????????# ##;##?# [ ##?????? | | ???????????????????# #### ! ##??????? | | ???????????????????# ##???????? | | ???????????????????# < #???????? | | ???????????????????## # # ##???????? | | ????????????????????## #% ######????????? | | ????????????????????## ##??????????? | | ????????????????????# d #??????????? | | ????????????????????# @ #??????????? | | ???????????????????##! #??????????? | | ???????????????????#= #??????????? | | ???????????????????# "" #??????????? | | ???????????????????# """ ###??????????? | | ??????????????????# "" #????????????? | | ????????????????? ####????????????? | | ???????????????? # #???????????????? | | ???????????????#??# ## ##???????????????? | | ??????????????????####?####????????????????? | | ???????????????????????????????????????????? | | ???????????????????????????????????????????? | | ???????????????????????????????????????????? | | ???????????????????????????????????????????? | | ???????????????????????????????????????????? | | ???????????????????????????????????????????? | | ???????????????????????????????????????????? | | ???????????????????????????????????????????? | | ???????????????????????????????????????????? | | ???????????????????????????????????????????? | | ???????????????????????????????????????????? | | ???????????????????????????????????????????? | | ???????????????????????????????????????????? | | ???????????????????????????????????????????? | | ???????????????????????????????????????????? | +----------------------------------------------------+ Best States ------------- Heat Dissipation 25 Energy Generation 10 Energy Capacity 250 Matter Stores 300 Matter Capacity 300 Sight Range 16 Terrain Scan Density 10 Armor Coverage 150 Evasion (%) 55 Item Schematics ----------------- None Robot Schematics ------------------ None Fabricated ------------ Nothing Alien Tech Used ----------------- None Achievements -------------- None Challenges ------------ None Game ------ Seed IntegrityChipTerrabomb Manual? 0 Play Time 00:18:30 Cumulative 514.5 hours Start 2023.03.11 @ 18:20:05 End 2023.03.11 @ 18:38:42 Sessions 1 Manual Loads 0 Difficulty Rogue Special Mode None Game No. 57 Rogue 40 Adventurer 17 Explorer 0 Win Type - Total 1 Types 1/0/0/0/0/0/0/0/0 Lore% 52 Gallery% 60 Achievement% 49 Wizard Run 0 Options --------- ASCII 0 Keyboard 0 Movement Numpad Keybinds 0 Fullscreen 1 Font 12/Smallcaps Map View 76x56 Tactical HUD 1 Map Filters NONE Filters NONE Steam 1 RUN: 2f3e6607-1050-4000-a2d4-c8ab9fd404f2